[Event "Live Chess"]
[Site "Chess.com"]
[Date "2023.05.20"]
[Round "-"]
[White "ZackirtyChess"]
[Black "jennybobby44"]
[Result "0-1"]
[WhiteElo "1147"]
[BlackElo "1855"]
[TimeControl "300"]
[EndTime "9:40:10 PDT"]
[Termination "jennybobby44 won by checkmate"]

1. d4 {[%clk 0:04:56.2]} 1... Nf6 {[%clk 0:04:58.4]} 2. c4 {[%clk 0:04:55.4]}
2... e6 {[%clk 0:04:57.3]} 3. Nc3 {[%clk 0:04:55.1]} 3... d5 {[%clk 0:04:56.3]}
4. Bg5 {[%clk 0:04:52.9]} 4... Be7 {[%clk 0:04:55.4]} 5. Nf3 {[%clk 0:04:50]}
5... h6 {[%clk 0:04:54.6]} 6. Bh4 {[%clk 0:04:48.6]} 6... O-O {[%clk 0:04:53.9]}
7. e3 {[%clk 0:04:43.4]} 7... a6 {[%clk 0:04:51]} 8. Bd3 {[%clk 0:04:42.7]} 8...
dxc4 {[%clk 0:04:50.1]} 9. Bxc4 {[%clk 0:04:40.8]} 9... b5 {[%clk 0:04:49.7]}
10. Bd3 {[%clk 0:04:32.7]} 10... Bb7 {[%clk 0:04:47.9]} 11. O-O {[%clk
0:04:29.6]} 11... Nbd7 {[%clk 0:04:46.9]} 12. Ne5 {[%clk 0:04:27.2]} 12... Nxe5
{[%clk 0:04:36.4]} 13. dxe5 {[%clk 0:04:27.1]} 13... Nd5 {[%clk 0:04:32.9]} 14.
Nxd5 {[%clk 0:04:15.4]} 14... Bxh4 {[%clk 0:04:16.6]} 15. Nf4 {[%clk 0:04:00.5]}
15... Be7 {[%clk 0:03:15.2]} 16. Qc2 {[%clk 0:03:49.3]} 16... c5 {[%clk
0:03:05.5]} 17. Rfd1 {[%clk 0:03:41.8]} 17... Qc7 {[%clk 0:03:00]} 18. Rac1
{[%clk 0:03:40.1]} 18... Qxe5 {[%clk 0:02:49.9]} 19. Bh7+ {[%clk 0:03:33.5]}
19... Kh8 {[%clk 0:02:43.1]} 20. Bg6 {[%clk 0:03:22.6]} 20... Bg5 {[%clk
0:02:12.6]} 21. Bh7 {[%clk 0:03:15.6]} 21... Bxf4 {[%clk 0:02:06.3]} 22. exf4
{[%clk 0:03:11]} 22... Qxf4 {[%clk 0:02:05.3]} 23. Qxc5 {[%clk 0:03:02.9]} 23...
Kxh7 {[%clk 0:01:59.1]} 24. Rd4 {[%clk 0:02:52.5]} 24... Qg5 {[%clk 0:01:53.7]}
25. Qxg5 {[%clk 0:02:44.5]} 25... hxg5 {[%clk 0:01:52.6]} 26. Rc3 {[%clk
0:02:42.9]} 26... Bd5 {[%clk 0:01:40.8]} 27. h4 {[%clk 0:02:40]} 27... Rac8
{[%clk 0:01:33.8]} 28. Rh3 {[%clk 0:02:35.2]} 28... Rc4 {[%clk 0:01:24.5]} 29.
hxg5+ {[%clk 0:02:28.7]} 29... Kg6 {[%clk 0:01:23.6]} 30. Rdd3 {[%clk
0:02:23.9]} 30... Rfc8 {[%clk 0:01:14.8]} 31. f4 {[%clk 0:02:16.6]} 31... Be4
{[%clk 0:01:10.2]} 32. Rde3 {[%clk 0:02:11.7]} 32... Bf5 {[%clk 0:01:07.7]} 33.
Rh4 {[%clk 0:02:06.6]} 33... Rc1+ {[%clk 0:01:02.9]} 34. Kh2 {[%clk 0:02:05.8]}
34... R8c2 {[%clk 0:01:01.5]} 35. Rb3 {[%clk 0:01:57.9]} 35... Rb1 {[%clk
0:00:59.3]} 36. Ra3 {[%clk 0:01:52.3]} 36... Rbxb2 {[%clk 0:00:58.1]} 37. Rg3
{[%clk 0:01:48.9]} 37... Rxa2 {[%clk 0:00:56.9]} 38. Rh8 {[%clk 0:01:39.6]}
38... a5 {[%clk 0:00:55.2]} 39. Rb8 {[%clk 0:01:38]} 39... b4 {[%clk 0:00:53.1]}
40. Rb5 {[%clk 0:01:36.2]} 40... Rcb2 {[%clk 0:00:49.9]} 41. Kh1 {[%clk
0:01:31.2]} 41... Be4 {[%clk 0:00:48.6]} 42. Kg1 {[%clk 0:01:28.3]} 42... Rxg2+
{[%clk 0:00:47.3]} 43. Rxg2 {[%clk 0:01:27.5]} 43... Rxg2+ {[%clk 0:00:46.3]}
44. Kf1 {[%clk 0:01:27.1]} 44... Ra2 {[%clk 0:00:44.1]} 45. Ke1 {[%clk
0:01:24.6]} 45... Bf5 {[%clk 0:00:41]} 46. Kd1 {[%clk 0:01:22.6]} 46... Rf2
{[%clk 0:00:38.6]} 47. Ke1 {[%clk 0:01:21.2]} 47... Rxf4 {[%clk 0:00:38.2]} 48.
Kd1 {[%clk 0:01:20.1]} 48... Kxg5 {[%clk 0:00:37.7]} 49. Ke1 {[%clk 0:01:19.6]}
49... e5 {[%clk 0:00:37.1]} 50. Kd1 {[%clk 0:01:18.5]} 50... e4 {[%clk
0:00:36.5]} 51. Ke1 {[%clk 0:01:18]} 51... e3 {[%clk 0:00:35.8]} 52. Kd1 {[%clk
0:01:17.3]} 52... Rf2 {[%clk 0:00:34.4]} 53. Ke1 {[%clk 0:01:16.6]} 53... Kf4
{[%clk 0:00:31.9]} 54. Kd1 {[%clk 0:01:14.7]} 54... Bd3 {[%clk 0:00:30.8]} 55.
Kc1 {[%clk 0:01:11.6]} 55... Bxb5 {[%clk 0:00:30]} 56. Kd1 {[%clk 0:01:10.5]}
56... e2+ {[%clk 0:00:28.9]} 57. Ke1 {[%clk 0:01:10]} 57... Rf1+ {[%clk
0:00:26.6]} 58. Kd2 {[%clk 0:01:08.8]} 58... e1=Q+ {[%clk 0:00:26.1]} 59. Kc2
{[%clk 0:01:08.3]} 59... Qe2+ {[%clk 0:00:24.8]} 60. Kb3 {[%clk 0:01:07.4]}
60... Rf3# {[%clk 0:00:24.1]} 0-1

[Event "Live Chess"]
[Site "Chess.com"]
[Date "2023.05.20"]
[Round "-"]
[White "seasidecastle27"]
[Black "zdanevych"]
[Result "0-1"]
[WhiteElo "1825"]
[BlackElo "1516"]
[TimeControl "300"]
[EndTime "9:40:11 PDT"]
[Termination "zdanevych won by resignation"]

1. e4 {[%clk 0:04:58.5]} 1... c5 {[%clk 0:04:58.3]} 2. Nf3 {[%clk 0:04:57.4]}
2... e6 {[%clk 0:04:57.1]} 3. d3 {[%clk 0:04:55.1]} 3... d5 {[%clk 0:04:57]} 4.
exd5 {[%clk 0:04:53.1]} 4... Qxd5 {[%clk 0:04:56.1]} 5. g3 {[%clk 0:04:50.4]}
5... Nf6 {[%clk 0:04:45.2]} 6. Bg2 {[%clk 0:04:49.3]} 6... Qd8 {[%clk
0:04:43.8]} 7. O-O {[%clk 0:04:48]} 7... Nc6 {[%clk 0:04:42.6]} 8. Nc3 {[%clk
0:04:40.7]} 8... h6 {[%clk 0:04:40]} 9. Bf4 {[%clk 0:04:37.9]} 9... Bd6 {[%clk
0:04:36.9]} 10. Bxd6 {[%clk 0:04:29.6]} 10... Qxd6 {[%clk 0:04:36.8]} 11. Nb5
{[%clk 0:04:25.2]} 11... Qd8 {[%clk 0:04:30.8]} 12. c3 {[%clk 0:04:18.9]} 12...
a6 {[%clk 0:04:28]} 13. Na3 {[%clk 0:04:17.1]} 13... O-O {[%clk 0:04:25.4]} 14.
Nc2 {[%clk 0:04:13.2]} 14... Bd7 {[%clk 0:04:22.4]} 15. d4 {[%clk 0:04:11.5]}
15... cxd4 {[%clk 0:04:20.9]} 16. Nfxd4 {[%clk 0:04:09.7]} 16... Nxd4 {[%clk
0:04:17.9]} 17. Nxd4 {[%clk 0:04:08.2]} 17... Nd5 {[%clk 0:04:08.8]} 18. Nf5
{[%clk 0:03:53.7]} 18... Bc6 {[%clk 0:04:04]} 19. Nd4 {[%clk 0:03:50]} 19... Rc8
{[%clk 0:03:54.4]} 20. Nxc6 {[%clk 0:03:47.8]} 20... bxc6 {[%clk 0:03:53.2]} 21.
Qe2 {[%clk 0:03:41.4]} 21... Qb6 {[%clk 0:03:50.5]} 22. Rfd1 {[%clk 0:03:29.9]}
22... Rfd8 {[%clk 0:03:48.7]} 23. Rd2 {[%clk 0:03:28.2]} 23... Rd7 {[%clk
0:03:39.6]} 24. Rad1 {[%clk 0:03:26]} 24... Rcd8 {[%clk 0:03:38.9]} 25. c4
{[%clk 0:03:20.1]} 25... Nf6 {[%clk 0:03:36.6]} 26. Rxd7 {[%clk 0:03:16.2]}
26... Rxd7 {[%clk 0:03:36.5]} 27. Rxd7 {[%clk 0:03:13]} 27... Nxd7 {[%clk
0:03:36.4]} 28. b3 {[%clk 0:03:04.7]} 28... Nf6 {[%clk 0:03:24.7]} 29. Qd2
{[%clk 0:02:55.2]} 29... Qc7 {[%clk 0:03:16.2]} 30. Qb4 {[%clk 0:02:46.8]} 30...
c5 {[%clk 0:03:12.4]} 31. Qb7 {[%clk 0:02:42.2]} 31... Qxb7 {[%clk 0:03:10]} 32.
Bxb7 {[%clk 0:02:39.4]} 32... a5 {[%clk 0:03:09.9]} 33. Kf1 {[%clk 0:02:31.2]}
33... Kf8 {[%clk 0:03:09.5]} 34. Ke2 {[%clk 0:02:30.1]} 34... Ke7 {[%clk
0:03:09.1]} 35. Kd3 {[%clk 0:02:27.5]} 35... Kd6 {[%clk 0:03:08.3]} 36. Kc3
{[%clk 0:02:20.5]} 36... Ng4 {[%clk 0:03:01.9]} 37. f4 {[%clk 0:02:03.8]} 37...
Nxh2 {[%clk 0:02:58.5]} 38. a3 {[%clk 0:01:59.8]} 38... Nf1 {[%clk 0:02:53.8]}
39. b4 {[%clk 0:01:51.8]} 39... cxb4+ {[%clk 0:02:48.7]} 40. axb4 {[%clk
0:01:50.3]} 40... axb4+ {[%clk 0:02:47.4]} 41. Kxb4 {[%clk 0:01:48.5]} 41...
Nxg3 {[%clk 0:02:44]} 42. c5+ {[%clk 0:01:46]} 42... Kc7 {[%clk 0:02:42.6]} 43.
Bf3 {[%clk 0:01:40.4]} 43... Nf5 {[%clk 0:02:37.1]} 44. Kc4 {[%clk 0:01:36.7]}
44... f6 {[%clk 0:02:27.5]} 45. Kd3 {[%clk 0:01:32]} 45... g5 {[%clk 0:02:24.7]}
46. fxg5 {[%clk 0:01:30]} 46... hxg5 {[%clk 0:02:24.6]} 47. Bh5 {[%clk
0:01:21.1]} 47... Kc6 {[%clk 0:02:17.9]} 48. Bf7 {[%clk 0:01:17.1]} 48... e5
{[%clk 0:02:10.4]} 0-1

[Event "Live Chess"]
[Site "Chess.com"]
[Date "2023.05.20"]
[Round "-"]
[White "alexlines8"]
[Black "HD_IN4k"]
[Result "1-0"]
[WhiteElo "1271"]
[BlackElo "297"]
[TimeControl "300"]
[EndTime "9:40:11 PDT"]
[Termination "alexlines8 won by checkmate"]

1. e4 {[%clk 0:04:58.3]} 1... e5 {[%clk 0:04:46.2]} 2. Nc3 {[%clk 0:04:54.2]}
2... Bc5 {[%clk 0:04:44.6]} 3. f4 {[%clk 0:04:51.7]} 3... exf4 {[%clk
0:04:42.6]} 4. Nf3 {[%clk 0:04:48.4]} 4... g5 {[%clk 0:04:39.6]} 5. d4 {[%clk
0:04:37.5]} 5... Bb6 {[%clk 0:04:35.2]} 6. h3 {[%clk 0:04:33.5]} 6... h5 {[%clk
0:04:31.5]} 7. Bc4 {[%clk 0:04:20.5]} 7... Nf6 {[%clk 0:04:23.2]} 8. e5 {[%clk
0:04:13.5]} 8... g4 {[%clk 0:04:09.3]} 9. hxg4 {[%clk 0:04:11.5]} 9... Nxg4
{[%clk 0:04:05.2]} 10. Bxf4 {[%clk 0:04:03.2]} 10... Nc6 {[%clk 0:03:41.9]} 11.
Qd2 {[%clk 0:03:49.3]} 11... Bxd4 {[%clk 0:03:30.6]} 12. Nxd4 {[%clk 0:03:43.6]}
12... Nxd4 {[%clk 0:03:26.5]} 13. Qxd4 {[%clk 0:03:37.4]} 13... c6 {[%clk
0:03:00.4]} 14. O-O-O {[%clk 0:03:29.8]} 14... f6 {[%clk 0:02:41.8]} 15. exf6
{[%clk 0:03:22]} 15... Rf8 {[%clk 0:02:34.5]} 16. f7+ {[%clk 0:03:17]} 16...
Rxf7 {[%clk 0:02:27.8]} 17. Bxf7+ {[%clk 0:03:09.7]} 17... Kxf7 {[%clk
0:02:27.2]} 18. Rxh5 {[%clk 0:02:59.2]} 18... b6 {[%clk 0:02:02.9]} 19. Rh7+
{[%clk 0:02:52.7]} 19... Kg8 {[%clk 0:01:50.9]} 20. Qg7# {[%clk 0:02:50.2]} 1-0

[Event "Live Chess"]
[Site "Chess.com"]
[Date "2023.05.20"]
[Round "-"]
[White "Fazer180"]
[Black "ChessTWSS"]
[Result "0-1"]
[WhiteElo "1720"]
[BlackElo "1710"]
[TimeControl "300"]
[EndTime "9:40:17 PDT"]
[Termination "ChessTWSS won on time"]

1. e4 {[%clk 0:04:58.2]} 1... c5 {[%clk 0:04:53.7]} 2. Nf3 {[%clk 0:04:55.5]}
2... Nc6 {[%clk 0:04:50]} 3. d4 {[%clk 0:04:55]} 3... cxd4 {[%clk 0:04:46.1]} 4.
Nxd4 {[%clk 0:04:54.9]} 4... Nxd4 {[%clk 0:04:38]} 5. Qxd4 {[%clk 0:04:54.8]}
5... e6 {[%clk 0:04:25.1]} 6. Nc3 {[%clk 0:04:49.9]} 6... Ne7 {[%clk 0:04:18]}
7. Nb5 {[%clk 0:04:41.5]} 7... Nc6 {[%clk 0:04:12.5]} 8. Nd6+ {[%clk 0:04:35.3]}
8... Bxd6 {[%clk 0:04:08.8]} 9. Qxd6 {[%clk 0:04:35.2]} 9... Qe7 {[%clk
0:04:04.5]} 10. Qg3 {[%clk 0:04:25.2]} 10... Qb4+ {[%clk 0:03:59.3]} 11. c3
{[%clk 0:04:05.2]} 11... Qxe4+ {[%clk 0:03:55.2]} 12. Be2 {[%clk 0:04:00.7]}
12... O-O {[%clk 0:03:47.6]} 13. Be3 {[%clk 0:03:41.7]} 13... b6 {[%clk
0:03:34.4]} 14. O-O-O {[%clk 0:03:34.7]} 14... Bb7 {[%clk 0:03:28.6]} 15. Rxd7
{[%clk 0:03:29.5]} 15... Nb4 {[%clk 0:03:15.2]} 16. cxb4 {[%clk 0:02:36.1]}
16... Qc6+ {[%clk 0:03:03.3]} 17. Kb1 {[%clk 0:02:34.6]} 17... Qxd7 {[%clk
0:02:59.9]} 18. Bh6 {[%clk 0:02:30.5]} 18... Be4+ {[%clk 0:02:48.3]} 19. Ka1
{[%clk 0:02:24.4]} 19... f5 {[%clk 0:02:23.5]} 20. Rd1 {[%clk 0:02:17.2]} 20...
Qe7 {[%clk 0:02:15.9]} 21. f3 {[%clk 0:02:09.1]} 21... Bc6 {[%clk 0:02:06.5]}
22. Rd6 {[%clk 0:02:06.4]} 22... Bb7 {[%clk 0:01:49.4]} 23. Rxe6 {[%clk
0:02:05.1]} 23... Qd7 {[%clk 0:01:37.6]} 24. Rd6 {[%clk 0:01:50.2]} 24... Qc7
{[%clk 0:01:28.5]} 25. Bc4+ {[%clk 0:01:31]} 25... Kh8 {[%clk 0:01:23.8]} 26. b3
{[%clk 0:00:57.9]} 26... gxh6 {[%clk 0:01:14.1]} 27. Qe5+ {[%clk 0:00:37.7]}
27... Qg7 {[%clk 0:01:09.2]} 28. Qxg7+ {[%clk 0:00:35.5]} 28... Kxg7 {[%clk
0:01:09.1]} 29. Rd7+ {[%clk 0:00:35]} 29... Kf6 {[%clk 0:01:02.5]} 30. Rxb7
{[%clk 0:00:33.3]} 30... Rfd8 {[%clk 0:00:52.5]} 31. Rxh7 {[%clk 0:00:30]} 31...
Rd2 {[%clk 0:00:47.2]} 32. Rxh6+ {[%clk 0:00:19.1]} 32... Kg5 {[%clk 0:00:40.8]}
33. Rh7 {[%clk 0:00:17.4]} 33... Re8 {[%clk 0:00:22.9]} 34. Rg7+ {[%clk
0:00:16]} 34... Kf6 {[%clk 0:00:18.6]} 35. Rf7+ {[%clk 0:00:15.3]} 35... Kg6
{[%clk 0:00:14.9]} 36. Bd3 {[%clk 0:00:06.6]} 36... Kxf7 {[%clk 0:00:12.4]} 37.
Bb1 {[%clk 0:00:05.1]} 37... Rd1 {[%clk 0:00:10.6]} 38. Kb2 {[%clk 0:00:03.7]}
38... Ree1 {[%clk 0:00:09.5]} 39. Bc2 {[%clk 0:00:01.4]} 39... Rd2 {[%clk
0:00:07.2]} 40. Kc3 {[%clk 0:00:01.3]} 40... Rxc2+ {[%clk 0:00:02.1]} 41. Kd4
{[%clk 0:00:00.3]} 41... Ree2 {[%clk 0:00:01.8]} 0-1

[Event "Live Chess"]
[Site "Chess.com"]
[Date "2023.05.20"]
[Round "-"]
[White "Argrath"]
[Black "domrobson"]
[Result "1-0"]
[WhiteElo "1493"]
[BlackElo "1711"]
[TimeControl "300"]
[EndTime "9:40:18 PDT"]
[Termination "Argrath won by resignation"]

1. e4 {[%clk 0:04:55.8]} 1... e5 {[%clk 0:04:59.5]} 2. Nf3 {[%clk 0:04:53.7]}
2... Nc6 {[%clk 0:04:58.1]} 3. Bb5 {[%clk 0:04:51.6]} 3... a6 {[%clk 0:04:56.8]}
4. Ba4 {[%clk 0:04:50.2]} 4... Nf6 {[%clk 0:04:56.1]} 5. d3 {[%clk 0:04:48.7]}
5... d6 {[%clk 0:04:54.3]} 6. c3 {[%clk 0:04:45.3]} 6... b5 {[%clk 0:04:52.7]}
7. Bb3 {[%clk 0:04:43.6]} 7... Bg4 {[%clk 0:04:51.7]} 8. Nbd2 {[%clk 0:04:41.1]}
8... d5 {[%clk 0:04:50.5]} 9. h3 {[%clk 0:04:39.2]} 9... Bxf3 {[%clk 0:04:49]}
10. Qxf3 {[%clk 0:04:38.1]} 10... dxe4 {[%clk 0:04:48.6]} 11. dxe4 {[%clk
0:04:37]} 11... Bc5 {[%clk 0:04:45.1]} 12. O-O {[%clk 0:04:35.6]} 12... O-O
{[%clk 0:04:43.4]} 13. Rd1 {[%clk 0:04:33.8]} 13... Qe7 {[%clk 0:04:39]} 14. Nf1
{[%clk 0:04:32.1]} 14... Rad8 {[%clk 0:04:37.2]} 15. Be3 {[%clk 0:04:30.7]}
15... Na5 {[%clk 0:04:32.3]} 16. Bc2 {[%clk 0:04:29]} 16... Nc4 {[%clk
0:04:29.3]} 17. b3 {[%clk 0:04:19.4]} 17... Nxe3 {[%clk 0:04:26.6]} 18. Nxe3
{[%clk 0:04:18.3]} 18... c6 {[%clk 0:04:22.4]} 19. Nf5 {[%clk 0:04:16.6]} 19...
Qa7 {[%clk 0:04:18.5]} 20. Qg3 {[%clk 0:04:14.6]} 20... g6 {[%clk 0:04:08.9]}
21. Qg5 {[%clk 0:03:43.9]} 21... Be7 {[%clk 0:03:45.9]} 22. Nh6+ {[%clk
0:03:38.5]} 22... Kh8 {[%clk 0:03:38.5]} 23. Qg3 {[%clk 0:03:23.5]} 23... Nh5
{[%clk 0:03:30.3]} 24. Qf3 {[%clk 0:03:15.7]} 24... Bg5 {[%clk 0:03:22.6]} 25.
Ng4 {[%clk 0:03:10.8]} 25... f6 {[%clk 0:03:17.5]} 26. g3 {[%clk 0:03:07.1]}
26... f5 {[%clk 0:03:02.6]} 27. exf5 {[%clk 0:02:58.3]} 27... gxf5 {[%clk
0:03:00.4]} 28. Nxe5 {[%clk 0:02:57]} 1-0

[Event "Live Chess"]
[Site "Chess.com"]
[Date "2023.05.20"]
[Round "-"]
[White "mach247"]
[Black "akp42"]
[Result "0-1"]
[WhiteElo "1335"]
[BlackElo "1953"]
[TimeControl "300"]
[EndTime "9:40:23 PDT"]
[Termination "akp42 won - game abandoned"]

1. d4 {[%clk 0:04:57.9]} 1... Nf6 {[%clk 0:04:58.3]} 2. Nc3 {[%clk 0:04:56.3]}
2... d5 {[%clk 0:04:56.6]} 3. Bf4 {[%clk 0:04:54.2]} 3... e6 {[%clk 0:04:55.1]}
4. Nb5 {[%clk 0:04:49.5]} 4... Na6 {[%clk 0:04:51.9]} 5. e3 {[%clk 0:04:48]}
5... c6 {[%clk 0:04:48.6]} 6. Nc3 {[%clk 0:04:47.1]} 6... Bd6 {[%clk 0:04:47.9]}
7. Bg3 {[%clk 0:04:38.4]} 7... O-O {[%clk 0:04:45.5]} 8. Nf3 {[%clk 0:04:37.2]}
8... b5 {[%clk 0:04:40.6]} 9. a4 {[%clk 0:04:20.6]} 9... b4 {[%clk 0:04:37.8]}
10. Nb1 {[%clk 0:04:19.8]} 10... c5 {[%clk 0:04:30.1]} 11. dxc5 {[%clk
0:04:12.7]} 11... Nxc5 {[%clk 0:04:28.9]} 12. Be2 {[%clk 0:03:46.3]} 12... Nce4
{[%clk 0:04:27.3]} 13. O-O {[%clk 0:03:43.1]} 13... Nxg3 {[%clk 0:04:24.9]} 14.
hxg3 {[%clk 0:03:42.3]} 14... a5 {[%clk 0:04:18.2]} 15. c3 {[%clk 0:03:40.5]}
15... Ba6 {[%clk 0:04:16]} 16. Bxa6 {[%clk 0:03:37.8]} 16... Rxa6 {[%clk
0:04:14.3]} 17. Nd4 {[%clk 0:03:25.2]} 17... Qb6 {[%clk 0:03:50]} 18. Nb5 {[%clk
0:03:21.2]} 18... Be7 {[%clk 0:03:42.6]} 19. Qd4 {[%clk 0:03:11.3]} 19... Rc8
{[%clk 0:03:41.1]} 20. Qxb6 {[%clk 0:03:10.4]} 20... Rxb6 {[%clk 0:03:40.1]} 21.
cxb4 {[%clk 0:03:09.5]} 21... Bxb4 {[%clk 0:03:37.9]} 22. N1c3 {[%clk
0:02:55.3]} 22... Kf8 {[%clk 0:03:28.4]} 23. Rac1 {[%clk 0:02:45]} 23... Rc4
{[%clk 0:03:21.6]} 24. b3 {[%clk 0:02:41]} 24... Rcc6 {[%clk 0:03:09.9]} 25.
Rfd1 {[%clk 0:02:27.6]} 25... Bxc3 {[%clk 0:03:01.2]} 26. Rxc3 {[%clk 0:02:25]}
26... Rxc3 {[%clk 0:02:59.8]} 27. Nxc3 {[%clk 0:02:24.4]} 27... Rxb3 {[%clk
0:02:59]} 28. Nb5 {[%clk 0:02:24]} 28... Rb4 {[%clk 0:02:56.4]} 0-1

[Event "Live Chess"]
[Site "Chess.com"]
[Date "2023.05.20"]
[Round "-"]
[White "Brooms1989"]
[Black "cedarsmaster"]
[Result "1-0"]
[WhiteElo "966"]
[BlackElo "1776"]
[TimeControl "300"]
[EndTime "9:40:29 PDT"]
[Termination "Brooms1989 won on time"]

1. e4 {[%clk 0:04:55.9]} 1... e6 {[%clk 0:04:57.6]} 2. d4 {[%clk 0:04:54.7]}
2... d5 {[%clk 0:04:56.1]} 3. Nc3 {[%clk 0:04:52.7]} 3... f5 {[%clk 0:04:51.6]}
4. exf5 {[%clk 0:04:38]} 4... exf5 {[%clk 0:04:48.9]} 5. Nf3 {[%clk 0:04:37.5]}
5... Nf6 {[%clk 0:04:47.2]} 6. Bd3 {[%clk 0:04:33.7]} 6... Nc6 {[%clk
0:04:37.6]} 7. O-O {[%clk 0:04:30.5]} 7... Be7 {[%clk 0:04:34.1]} 8. Bg5 {[%clk
0:04:15.7]} 8... O-O {[%clk 0:04:29.4]} 9. Qd2 {[%clk 0:03:58.1]} 9... Ne4
{[%clk 0:04:17]} 10. Bxe7 {[%clk 0:03:43.5]} 10... Nxd2 {[%clk 0:04:13.8]} 11.
Bxd8 {[%clk 0:03:41.3]} 11... Nxf3+ {[%clk 0:04:10.7]} 12. gxf3 {[%clk
0:03:39.3]} 12... Rxd8 {[%clk 0:04:07]} 13. Rfe1 {[%clk 0:03:34.1]} 13... Nxd4
{[%clk 0:04:02.2]} 14. Kg2 {[%clk 0:03:30.2]} 14... c6 {[%clk 0:03:43.1]} 15.
Re3 {[%clk 0:03:19.3]} 15... Ne6 {[%clk 0:02:35.5]} 16. Rae1 {[%clk 0:02:45]}
16... Nf4+ {[%clk 0:02:27.6]} 17. Kf1 {[%clk 0:02:34.3]} 17... Nxd3 {[%clk
0:02:10.9]} 18. cxd3 {[%clk 0:02:32.6]} 18... d4 {[%clk 0:02:06.4]} 19. Re8+
{[%clk 0:02:27.7]} 19... Rxe8 {[%clk 0:02:03.5]} 20. Rxe8+ {[%clk 0:02:27.6]}
20... Kf7 {[%clk 0:02:01.1]} 21. Rh8 {[%clk 0:01:59.6]} 21... dxc3 {[%clk
0:01:56.6]} 22. bxc3 {[%clk 0:01:59.5]} 22... b6 {[%clk 0:01:45.4]} 23. Rxh7
{[%clk 0:01:54.2]} 23... Ba6 {[%clk 0:01:39.1]} 24. c4 {[%clk 0:01:49]} 24...
Re8 {[%clk 0:01:34]} 25. Rh5 {[%clk 0:01:41.5]} 25... Kg6 {[%clk 0:01:25.8]} 26.
Rh3 {[%clk 0:01:34.2]} 26... f4 {[%clk 0:01:14.7]} 27. Rh4 {[%clk 0:01:26.2]}
27... Kf5 {[%clk 0:01:07.9]} 28. Rg4 {[%clk 0:01:08.5]} 28... g5 {[%clk
0:01:03.7]} 29. h4 {[%clk 0:01:01.8]} 29... gxh4 {[%clk 0:00:59.9]} 30. Rxh4
{[%clk 0:01:01.7]} 30... Re7 {[%clk 0:00:48.7]} 31. Rh5+ {[%clk 0:00:54.3]}
31... Kg6 {[%clk 0:00:42.2]} 32. Rh4 {[%clk 0:00:51.7]} 32... Kg5 {[%clk
0:00:35.2]} 33. Rg4+ {[%clk 0:00:50.2]} 33... Kf5 {[%clk 0:00:31.4]} 34. Rh4
{[%clk 0:00:49.3]} 34... c5 {[%clk 0:00:24.3]} 35. Rh5+ {[%clk 0:00:46.9]} 35...
Kg6 {[%clk 0:00:18.3]} 36. Rh4 {[%clk 0:00:45.3]} 36... Kg5 {[%clk 0:00:12.3]}
37. Rg4+ {[%clk 0:00:44.1]} 37... Kf5 {[%clk 0:00:09.1]} 38. Rh4 {[%clk
0:00:42.6]} 38... Rg7 {[%clk 0:00:07.5]} 39. Rh5+ {[%clk 0:00:39.4]} 39... Kf6
{[%clk 0:00:03.8]} 40. Rh6+ {[%clk 0:00:37.4]} 40... Ke5 {[%clk 0:00:02.2]} 41.
Rh5+ {[%clk 0:00:36.7]} 41... Kd4 {[%clk 0:00:00.5]} 42. Rf5 {[%clk 0:00:34.1]}
1-0

[Event "Live Chess"]
[Site "Chess.com"]
[Date "2023.05.20"]
[Round "-"]
[White "CocheseUK"]
[Black "jusjoel"]
[Result "1/2-1/2"]
[WhiteElo "1113"]
[BlackElo "297"]
[TimeControl "300"]
[EndTime "9:40:29 PDT"]
[Termination "Game drawn by agreement"]

1. c4 {[%clk 0:04:53.8]} 1... d6 {[%clk 0:04:35]} 2. g3 {[%clk 0:04:50.9]} 2...
c5 {[%clk 0:04:31.6]} 3. Bg2 {[%clk 0:04:49.1]} 3... Qa5 {[%clk 0:04:28]} 4. Nc3
{[%clk 0:04:42.7]} 4... Be6 {[%clk 0:04:20.5]} 5. Bxb7 {[%clk 0:04:32]} 5... d5
{[%clk 0:03:57]} 6. cxd5 {[%clk 0:04:26.7]} 6... Qb6 {[%clk 0:03:48.9]} 7. Bxa8
{[%clk 0:04:22.8]} 7... g6 {[%clk 0:03:41.6]} 8. Bc6+ {[%clk 0:04:17.1]} 8...
Kd8 {[%clk 0:03:27.3]} 9. Na4 {[%clk 0:04:12.2]} 9... Qa6 {[%clk 0:03:15.1]} 10.
Nxc5 {[%clk 0:04:08.4]} 10... Qa5 {[%clk 0:03:08.8]} 11. Nxe6+ {[%clk
0:04:00.1]} 11... fxe6 {[%clk 0:03:02.8]} 12. dxe6 {[%clk 0:03:58.7]} 12... Nxc6
{[%clk 0:03:01]} 13. Nf3 {[%clk 0:03:49.7]} 13... Nf6 {[%clk 0:02:55]} 14. O-O
{[%clk 0:03:46.2]} 14... Kc7 {[%clk 0:02:35.2]} 15. d4 {[%clk 0:03:43.1]} 15...
Kd6 {[%clk 0:02:30.7]} 16. Bf4+ {[%clk 0:03:21.2]} 16... Kxe6 {[%clk 0:02:24.3]}
17. Ng5+ {[%clk 0:03:08.8]} 17... Kf5 {[%clk 0:02:16.9]} 18. f3 {[%clk
0:02:50.7]} 18... h6 {[%clk 0:02:08.6]} 19. Qd3+ {[%clk 0:02:45.8]} 19... Ne4
{[%clk 0:01:52.7]} 20. Qxe4+ {[%clk 0:02:40.5]} 20... Kf6 {[%clk 0:01:50.9]} 21.
Qxc6+ {[%clk 0:02:29.8]} 21... e6 {[%clk 0:01:43.7]} 22. Qxe6+ {[%clk
0:02:25.8]} 22... Kg7 {[%clk 0:01:40.7]} 23. Qxg6+ {[%clk 0:02:24.1]} 23... Kxg6
{[%clk 0:01:38.7]} 24. Ne4 {[%clk 0:02:14.6]} 24... Qb4 {[%clk 0:01:27.1]} 25.
Be5 {[%clk 0:01:53.5]} 25... Rh7 {[%clk 0:01:08.1]} 26. b3 {[%clk 0:01:43]}
26... Rd7 {[%clk 0:00:55.1]} 27. Rfd1 {[%clk 0:01:35.9]} 27... Bg7 {[%clk
0:00:39.5]} 28. Bxg7 {[%clk 0:01:19.7]} 1/2-1/2